bitfinex/quotes_SOLUSD_20241214
["timestamp","ask_amount","ask_price","bid_price","bid_amount"]
[1734181503326,13.32938182,222.35,222.29,1.5041]
[1734181504520,0.67404307,222.39,222.29,14.83348182]
[1734181504521,13.32938182,222.36,222.29,14.83348182]
[1734181505320,13.32938182,222.35,222.29,1.5041]
[1734181506429,13.32938182,222.39,222.32,13.32938182]
[1734181507150,13.32938182,222.37,222.3,13.32938182]
[1734181507320,13.32938182,222.36,222.29,34.83348182]
[1734181508454,13.32938182,222.37,222.3,14.00395144]
[1734181508816,13.32938182,222.38,222.31,13.32938182]
[1734181509153,23.776884,222.4,222.3,14.00395144]
[1734181509154,13.32938182,222.37,222.3,14.00395144]
[1734181509327,13.32938182,222.36,222.3,0.67456962]
[1734181509527,13.32938182,222.36,222.32,20.0]
[1734181509727,13.32938182,222.34,222.29,1.5041]
[1734181509929,13.32938182,222.34,222.26,13.32938182]
[1734181510128,13.32938182,222.35,222.28,13.32938182]
[1734181510341,13.32938182,222.36,222.28,13.32938182]
[1734181510630,13.32938182,222.41,222.34,13.32938182]
[1734181510936,13.32938182,222.43,222.36,13.32938182]
[1734181511248,13.32938182,222.43,222.37,0.67435314]
[1734181511826,13.32938182,222.45,222.38,13.32938182]
[1734181512158,13.32938182,222.45,222.39,0.67432379]
[1734181512731,13.32938182,222.47,222.4,13.32938182]
[1734181513649,13.32938182,222.46,222.39,14.00370561]
[1734181514351,13.32938182,222.47,222.4,13.32938182]
[1734181514532,13.32938182,222.46,222.4,0.67423094]
[1734181514732,13.32938182,222.45,222.38,13.32938182]
[1734181515044,13.32938182,222.44,222.37,14.00365361]
[1734181515245,13.32938182,222.43,222.37,0.67427179]
[1734181515629,13.32938182,222.42,222.37,0.67427179]
[1734181516031,13.32938182,222.43,222.36,14.00372837]
[1734181517057,13.32938182,222.41,222.35,20.0]
[1734181517357,13.32938182,222.41,222.35,20.6744069]
[1734181518657,13.32938182,222.43,222.36,13.32938182]
[1734181518844,13.32938182,222.42,222.35,34.00374128]
[1734181519150,13.32938182,222.41,222.35,20.67435946]
[1734181520458,13.32938182,222.42,222.35,34.00374128]
[1734181522555,13.32938182,222.44,222.37,13.32938182]
[1734181522869,13.32938182,222.45,222.38,14.00368657]
[1734181523168,13.32938182,222.46,222.39,13.32938182]
[1734181523331,13.32938182,222.47,222.4,0.67422861]
[1734181523870,13.32938182,222.46,222.4,0.67422861]
[1734181524048,13.32938182,222.43,222.36,34.00361337]
[1734181524439,13.32938182,222.41,222.38,20.0]
[1734181524639,0.67404307,222.49,222.38,20.0]
[1734181524640,13.32938182,222.42,222.38,20.0]
[1734181525061,13.32938182,222.43,222.36,14.00379225]
[1734181525372,13.32938182,222.44,222.37,13.32938182]
[1734181525573,13.32938182,222.45,222.38,14.00366502]
[1734181525862,13.32938182,222.44,222.38,0.6742832]
[1734181526860,13.32938182,222.43,222.38,0.6742832]
[1734181527056,13.32938182,222.43,222.39,20.0]
[1734181527365,13.32938182,222.42,222.39,20.0]
[1734181527569,13.32938182,222.41,222.37,20.0]
[1734181528440,13.32938182,222.42,222.37,20.0]
[1734181529506,0.12549,222.5,222.37,0.6743793]
[1734181529649,13.32938182,222.44,222.37,14.00376112]
[1734181529966,13.32938182,222.43,222.37,0.6743793]
[1734181530167,13.32938182,222.43,222.39,20.0]
[1734181530339,13.32938182,222.44,222.39,20.0]
[1734181531443,13.32938182,222.44,222.37,14.00376112]
[1734181531444,13.32938182,222.41,222.35,20.0]
[1734181531647,13.32938182,222.41,222.37,20.0]
[1734181532056,13.32938182,222.42,222.37,20.0]
[1734181533388,13.32938182,222.41,222.36,20.0]
[1734181533592,13.32938182,222.38,222.36,20.0]
[1734181533794,13.32938182,222.38,222.33,1.5041]
[1734181534101,13.32938182,222.38,222.35,20.0]
[1734181536165,13.32938182,222.39,222.33,1.5041]
[1734181536367,13.32938182,222.38,222.33,1.5041]
[1734181536789,13.32938182,222.38,222.34,20.0]
[1734181538792,13.32938182,222.4,222.33,14.83348182]
[1734181539092,13.32938182,222.42,222.35,33.32938182]
[1734181539989,13.32938182,222.45,222.38,13.32938182]
[1734181540181,13.32938182,222.46,222.39,14.0036854]
[1734181540368,13.32938182,222.47,222.4,13.32938182]
[1734181541292,13.32938182,222.45,222.4,0.67424714]
[1734181541593,13.32938182,222.46,222.4,0.67424714]
[1734181542470,13.32938182,222.46,222.39,33.32938182]
[1734181544369,13.32938182,222.45,222.39,20.0]
[1734181544583,13.32938182,222.43,222.36,13.32938182]
[1734181546100,13.32938182,222.44,222.36,13.32938182]
[1734181546291,13.32938182,222.44,222.37,13.32938182]
[1734181547194,8.5350639,222.44,222.38,20.0]
[1734181547498,8.5350639,222.44,222.36,8.5350639]
[1734181548498,24.027864,222.49,222.36,8.5350639]
[1734181548693,8.5350639,222.44,222.36,8.5350639]
[1734181549094,8.5350639,222.41,222.38,20.0]
[1734181549287,8.5350639,222.41,222.35,6.4629]
[1734181549996,8.5350639,222.42,222.35,6.4629]
[1734181550578,23.776884,222.47,222.35,14.9979639]
[1734181550797,8.5350639,222.42,222.35,14.9979639]
[1734181552502,8.5350639,222.41,222.37,20.0]
[1734181552690,8.5350639,222.41,222.33,10.0391639]
[1734181552691,8.5350639,222.4,222.33,1.5041]
[1734181552888,8.5350639,222.4,222.35,20.0]
[1734181553693,8.5350639,222.4,222.33,30.0391639]
[1734181554205,5.16924307,222.46,222.33,30.0391639]
[1734181554206,8.5350639,222.41,222.34,8.5350639]
[1734181555481,8.5350639,222.41,222.33,30.0391639]
[1734181555683,8.5350639,222.39,222.33,21.5041]
[1734181556190,8.5350639,222.38,222.33,21.5041]
[1734181556508,8.5350639,222.38,222.34,20.0]
[1734181557306,8.5350639,222.35,222.28,1.6623]
[1734181557479,8.5350639,222.31,222.28,1.6623]
[1734181560008,8.5350639,222.3,222.26,20.0]
[1734181560206,8.5350639,222.28,222.26,20.0]
[1734181560383,8.5350639,222.29,222.26,20.0]
[1734181560589,8.5350639,222.29,222.25,20.0]
[1734181562002,8.5350639,222.27,222.21,7.00586209]
[1734181562202,8.5350639,222.26,222.21,1.5539]
[1734181562981,8.5350639,222.24,222.21,1.5539]
[1734181563489,8.5350639,222.23,222.16,7.00586209]
[1734181564203,8.5350639,222.22,222.16,7.00586209]
[1734181564402,8.5350639,222.2,222.16,1.5539]
[1734181565284,13.36408436,222.2,222.16,1.5539]
[1734181565684,13.36408436,222.19,222.16,1.5539]
[1734181565885,13.36408436,222.17,222.11,1.5539]
[1734181566105,13.36408436,222.16,222.11,1.5539]
[1734181566889,0.67404307,222.25,222.11,14.91798436]
[1734181566890,13.36408436,222.18,222.11,14.91798436]
[1734181567602,13.36408436,222.17,222.11,1.5539]
[1734181567900,13.36408436,222.17,222.11,21.5539]
[1734181568109,13.36408436,222.17,222.13,20.0]
[1734181568823,13.36408436,222.17,222.12,20.0]
[1734181568987,13.36408436,222.18,222.11,34.91798436]
[1734181569188,13.36408436,222.2,222.12,14.03922375]
[1734181569413,13.36408436,222.2,222.13,13.36408436]
[1734181570115,23.776884,222.24,222.13,13.36408436]
[1734181570328,13.36408436,222.2,222.13,13.36408436]
[1734181570910,13.36408436,222.19,222.12,13.36408436]
[1734181571110,13.36408436,222.19,222.11,34.91798436]
[1734181571316,13.36408436,222.18,222.11,34.91798436]
[1734181571489,13.36408436,222.19,222.12,13.36408436]
[1734181572190,13.36408436,222.18,222.11,34.91798436]
[1734181572390,13.36408436,222.19,222.12,13.36408436]
[1734181573122,13.36408436,222.23,222.16,13.36408436]
[1734181573611,13.36408436,222.23,222.11,32.8094]
[1734181573612,13.36408436,222.25,222.18,13.36408436]
[1734181573911,13.36408436,222.27,222.19,14.03898382]
[1734181574532,13.36408436,222.26,222.19,14.03898382]
[1734181574820,13.36408436,222.24,222.17,13.36408436]
[1734181574995,13.36408436,222.23,222.2,20.0]
[1734181575319,13.36408436,222.24,222.2,20.0]
[1734181575521,13.36408436,222.25,222.18,14.03904791]
[1734181576612,13.36408436,222.25,222.18,0.67496355]
[1734181576813,13.36408436,222.23,222.16,13.36408436]
[1734181579325,13.36408436,222.22,222.15,14.03900947]
[1734181579503,13.36408436,222.19,222.18,20.0]
[1734181579713,13.36408436,222.19,222.11,1.5539]
[1734181580028,13.36408436,222.15,222.11,1.5539]
[1734181580989,13.36408436,222.16,222.11,21.5539]
[1734181584719,13.36408436,222.17,222.11,21.5539]
[1734181584929,13.36408436,222.22,222.14,13.36408436]
[1734181585104,13.36408436,222.23,222.15,14.03909971]
[1734181585423,13.36408436,222.22,222.15,0.67501535]
[1734181585617,13.36408436,222.21,222.17,20.0]
[1734181585999,13.36408436,222.2,222.12,13.36408436]
[1734181586199,0.67404307,222.25,222.15,20.0]
[1734181586404,0.79953307,222.26,222.15,20.0]
[1734181586622,13.36408436,222.22,222.15,20.0]
[1734181587608,13.36408436,222.22,222.15,33.36408436]
[1734181589020,0.67404307,222.26,222.15,33.36408436]
[1734181589226,13.36408436,222.23,222.16,14.03908451]
[1734181589701,13.36408436,222.23,222.19,20.0]
[1734181591201,13.36408436,222.24,222.19,20.0]
[1734181591404,13.36408436,222.24,222.17,13.36408436]
[1734181592048,0.67404307,222.28,222.18,13.36408436]
[1734181592215,13.36408436,222.28,222.21,13.36408436]
[1734181592414,13.36408436,222.29,222.22,14.0388904]
[1734181592921,0.67404307,222.34,222.25,20.0]
[1734181593237,0.67404307,222.34,222.23,8.54523888]
[1734181593238,8.54523888,222.3,222.23,8.54523888]
[1734181593457,8.54523888,222.3,222.25,20.0]
[1734181594845,8.54523888,222.29,222.25,20.0]
[1734181595221,13.35367723,222.29,222.22,14.02847084]
[1734181595738,13.35367723,222.29,222.25,20.0]
[1734181595943,13.35367723,222.31,222.26,20.0]
[1734181596144,13.35367723,222.32,222.26,1.6532]
[1734181596530,0.67404307,222.35,222.26,1.6532]
[1734181596728,13.35367723,222.32,222.26,1.6532]
[1734181596948,13.35367723,222.31,222.26,1.6532]
[1734181597268,13.35367723,222.29,222.22,13.35367723]
[1734181597431,13.35367723,222.29,222.25,20.0]
[1734181598062,13.35367723,222.3,222.26,20.0]
[1734181599434,13.35367723,222.27,222.22,20.0]
[1734181599638,13.35367723,222.25,222.19,1.6532]
[1734181600034,13.35367723,222.27,222.2,13.35367723]
[1734181600235,13.35367723,222.28,222.22,13.35367723]
[1734181600426,13.35367723,222.29,222.22,14.02844799]
[1734181600841,13.35367723,222.31,222.25,13.35367723]
[1734181601939,0.12549,222.37,222.25,13.35367723]
[1734181602135,13.35367723,222.32,222.25,13.35367723]
[1734181602331,0.12549,222.37,222.25,13.35367723]
[1734181602332,0.67404307,222.36,222.25,13.35367723]
[1734181602534,13.35367723,222.32,222.25,13.35367723]
[1734181605029,13.35367723,222.31,222.25,13.35367723]
[1734181605229,13.35367723,222.31,222.24,13.35367723]
[1734181605446,13.35367723,222.31,222.27,20.0]
[1734181606053,13.35367723,222.31,222.24,14.02839131]
[1734181606054,13.35367723,222.32,222.28,20.0]
[1734181607246,13.35367723,222.33,222.26,13.35367723]
[1734181609833,13.35367723,222.31,222.27,1.6657]
[1734181610155,13.35367723,222.3,222.23,33.35367723]
[1734181610359,13.35367723,222.29,222.25,20.0]
[1734181612536,13.35367723,222.3,222.25,20.0]
[1734181612936,13.35367723,222.27,222.22,1.6657]
[1734181614554,13.35367723,222.26,222.22,1.6657]
[1734181614956,13.35367723,222.26,222.22,21.6657]
[1734181615347,13.35367723,222.27,222.23,20.0]
[1734181616148,13.35367723,222.27,222.22,1.6657]
[1734181617158,8.54797975,222.27,222.22,1.6657]
[1734181617761,8.54797975,222.26,222.22,1.6657]
[1734181617961,8.54797975,222.26,222.22,21.6657]
[1734181618873,8.54797975,222.3,222.23,8.54797975]
[1734181619973,8.54797975,222.3,222.22,1.6657]
[1734181620166,8.54797975,222.29,222.22,10.21367975]
[1734181620375,8.54797975,222.27,222.22,1.6657]
[1734181620558,8.54797975,222.25,222.22,1.6657]
[1734181620865,8.54797975,222.24,222.22,1.6657]
[1734181621771,8.54797975,222.26,222.22,1.6657]
[1734181622965,0.67404307,222.25,222.2,20.0]
[1734181623158,8.54797975,222.24,222.17,7.7519]
[1734181623477,8.54797975,222.22,222.17,1.6236]
[1734181624670,8.54797975,222.24,222.17,1.6236]
[1734181625176,9.22202282,222.23,222.17,1.6236]
[1734181625758,8.54797975,222.22,222.15,20.0]
[1734181625966,8.54797975,222.2,222.13,8.54797975]
[1734181626275,8.54797975,222.19,222.12,16.68257975]
[1734181626973,8.54797975,222.19,222.12,8.1346]
[1734181627173,9.22202282,222.18,222.12,8.1346]
[1734181627478,8.54797975,222.18,222.12,1.6236]
[1734181627865,8.54797975,222.17,222.12,1.6236]
[1734181628473,8.54797975,222.18,222.12,1.6236]
[1734181629348,0.67404307,222.21,222.12,1.6236]
[1734181629575,8.54797975,222.2,222.12,10.17157975]
[1734181630479,0.67404307,222.19,222.12,10.17157975]
[1734181631172,9.22202282,222.19,222.12,10.17157975]
[1734181632376,0.67404307,222.19,222.13,8.54797975]
[1734181632574,8.54797975,222.21,222.14,8.54797975]
[1734181633259,8.54797975,222.23,222.15,8.54797975]
[1734181633466,0.67404307,222.26,222.19,8.54797975]
[1734181633654,8.54797975,222.27,222.2,8.54797975]
[1734181634174,0.67404307,222.26,222.2,8.54797975]
[1734181635668,0.67404307,222.3,222.21,8.54797975]
[1734181635873,8.54797975,222.3,222.21,2.24685664]
[1734181636149,8.54797975,222.29,222.22,8.54797975]
[1734181636764,8.54797975,222.26,222.21,1.5719]
[1734181636966,8.54797975,222.25,222.21,1.5719]
[1734181637477,8.54797975,222.27,222.21,1.5719]
[1734181637991,8.54797975,222.28,222.21,10.11987975]
[1734181638286,8.54797975,222.29,222.22,8.54797975]
[1734181639187,0.67404307,222.32,222.21,1.5719]
[1734181639362,0.67404307,222.36,222.26,8.54797975]
[1734181639567,8.54797975,222.33,222.26,8.54797975]
[1734181640162,8.54797975,222.31,222.21,1.5719]
[1734181640366,8.54797975,222.3,222.21,1.5719]
[1734181640564,0.79953307,222.35,222.21,1.5719]
[1734181640565,8.54797975,222.29,222.22,8.54797975]
[1734181640752,8.54797975,222.3,222.23,8.54797975]
[1734181641557,8.54797975,222.33,222.25,8.54797975]
[1734181642187,8.54797975,222.32,222.25,8.54797975]
[1734181642780,8.54797975,222.31,222.24,8.54797975]
[1734181645263,8.54797975,222.32,222.24,8.54797975]
[1734181648730,8.54797975,222.31,222.24,8.54797975]
[1734181649143,8.54797975,222.29,222.22,8.54797975]
[1734181649300,8.54797975,222.29,222.25,20.0]
[1734181649500,0.79953307,222.35,222.21,10.11987975]
[1734181649501,8.54797975,222.28,222.21,10.11987975]
[1734181650037,8.54797975,222.25,222.21,1.5719]
[1734181650533,8.54797975,222.26,222.21,1.5719]
[1734181651739,0.79953307,222.29,222.21,1.5719]
[1734181652025,8.54797975,222.26,222.21,1.5719]
[1734181652323,8.54797975,222.29,222.22,8.54797975]
[1734181653108,8.54797975,222.29,222.21,10.11987975]
[1734181653624,8.54797975,222.28,222.21,10.11987975]
[1734181653828,8.54797975,222.26,222.21,1.5719]
[1734181654123,8.54797975,222.23,222.16,10.06237975]
[1734181655611,8.54797975,222.24,222.17,8.54797975]
[1734181655926,8.54797975,222.25,222.18,28.54797975]
[1734181656099,8.54797975,222.24,222.18,20.0]
[1734181657607,0.67404307,222.23,222.18,20.0]
[1734181657805,8.54797975,222.21,222.17,20.0]
[1734181658411,8.28372202,222.21,222.17,20.0]
[1734181658930,8.28372202,222.21,222.16,1.5144]
[1734181659127,8.54797975,222.19,222.12,8.54797975]
[1734181660139,8.54797975,222.18,222.11,1.5343]
[1734181660438,8.54797975,222.18,222.11,10.08227975]
[1734181662110,8.54797975,222.19,222.12,8.54797975]
[1734181662348,0.67404307,222.21,222.13,8.54797975]
[1734181662526,8.54797975,222.2,222.13,8.54797975]
[1734181662718,8.54797975,222.21,222.14,8.54797975]
[1734181663549,8.54797975,222.23,222.16,8.54797975]
[1734181665734,8.54797975,222.23,222.13,20.0]
[1734181666040,8.54797975,222.23,222.15,8.54797975]
[1734181666212,8.54797975,222.22,222.15,8.54797975]
[1734181667143,8.54797975,222.2,222.12,8.54797975]
[1734181667943,8.54797975,222.18,222.11,1.5343]
[1734181668244,9.22202282,222.17,222.11,1.5343]
[1734181668533,8.54797975,222.17,222.11,1.5343]
[1734181670519,8.54797975,222.18,222.11,1.5343]
[1734181670735,8.54797975,222.18,222.11,10.08227975]
[1734181671034,8.54797975,222.19,222.12,8.54797975]
[1734181671949,0.67404307,222.18,222.12,8.54797975]
[1734181672939,9.22202282,222.18,222.11,10.08227975]
[1734181674035,9.22202282,222.18,222.11,1.5343]
[1734181674348,9.22202282,222.18,222.11,10.08227975]
[1734181674850,0.67404307,222.18,222.11,10.08227975]
[1734181676641,0.67404307,222.18,222.12,8.54797975]
[1734181676818,23.776884,222.23,222.14,8.54797975]
[1734181677172,8.54797975,222.23,222.16,8.54797975]
[1734181677439,0.67404307,222.25,222.19,8.54797975]
[1734181677646,0.67404307,222.25,222.18,8.54797975]
[1734181678233,8.54797975,222.27,222.2,8.54797975]
[1734181678422,0.67404307,222.26,222.2,8.54797975]
[1734181678924,0.67404307,222.26,222.19,10.15117975]
[1734181678925,9.22202282,222.26,222.19,10.15117975]
[1734181679441,9.22202282,222.26,222.19,1.6032]
[1734181680021,8.54797975,222.25,222.19,1.6032]
[1734181680413,8.54797975,222.26,222.19,10.15117975]
[1734181680847,0.79953307,222.28,222.19,10.15117975]
[1734181681047,8.54797975,222.26,222.19,10.15117975]
[1734181681529,0.67404307,222.25,222.19,1.6032]
[1734181681726,9.22202282,222.25,222.19,1.6032]
[1734181681927,8.54797975,222.24,222.19,1.6032]
[1734181682126,8.54797975,222.24,222.13,0.6749839]
[1734181682127,8.54797975,222.22,222.13,10.15117975]
[1734181682320,8.54797975,222.22,222.14,8.54797975]
[1734181683458,8.54797975,222.23,222.15,8.54797975]
[1734181683653,0.67404307,222.26,222.15,8.54797975]
[1734181683654,0.67404307,222.26,222.17,8.54797975]
[1734181683856,0.67404307,222.26,222.15,0.67506767]
[1734181683857,9.22202282,222.26,222.18,8.54797975]
[1734181684562,0.67404307,222.26,222.18,8.54797975]
[1734181684760,8.54797975,222.26,222.18,8.54797975]
[1734181687055,8.54797975,222.25,222.18,8.54797975]
[1734181687665,8.54797975,222.28,222.21,8.54797975]
[1734181688559,8.54797975,222.27,222.19,8.54797975]
[1734181689133,8.54797975,222.28,222.2,8.54797975]
[1734181689766,0.67404307,222.3,222.2,8.54797975]
[1734181690058,0.67404307,222.33,222.22,8.54797975]
[1734181690275,8.54797975,222.3,222.23,8.54797975]
[1734181691544,8.54797975,222.3,222.21,2.27804149]
[1734181691747,8.54797975,222.29,222.22,8.54797975]
[1734181691947,8.54797975,222.3,222.23,8.54797975]
[1734181692152,8.54797975,222.29,222.22,8.54797975]
[1734181692579,8.54797975,222.3,222.23,8.54797975]
[1734181692744,0.67404307,222.33,222.24,8.54797975]
[1734181692946,8.54797975,222.31,222.24,8.54797975]
[1734181693380,0.67404307,222.33,222.24,8.54797975]
[1734181693669,8.54797975,222.31,222.24,8.54797975]
[1734181694263,8.54797975,222.3,222.23,8.54797975]
[1734181694970,8.54797975,222.28,222.21,30.15117975]
[1734181695563,8.54797975,222.3,222.23,8.54797975]
[1734181696061,9.22202282,222.29,222.21,30.15117975]
[1734181696271,8.54797975,222.29,222.21,30.15117975]
[1734181696566,8.54797975,222.29,222.22,8.54797975]
[1734181696947,8.54797975,222.29,222.21,30.15117975]
[1734181697169,8.54797975,222.26,222.21,1.6032]
[1734181697373,9.22202282,222.25,222.18,6.3925]
[1734181698171,8.54797975,222.25,222.18,6.3925]
[1734181698661,8.54797975,222.25,222.18,14.94047975]
[1734181698971,0.67404307,222.28,222.18,14.94047975]
[1734181698972,8.54797975,222.27,222.2,8.54797975]
[1734181700558,8.54797975,222.29,222.22,8.54797975]
[1734181701285,8.54797975,222.3,222.23,8.54797975]
[1734181701653,8.54797975,222.3,222.21,20.0]
[1734181701853,8.54797975,222.3,222.23,8.54797975]
[1734181702766,8.54797975,222.3,222.22,0.67480353]
[1734181702767,8.54797975,222.31,222.24,8.54797975]
[1734181703370,8.54797975,222.3,222.23,8.54797975]
[1734181703856,8.54797975,222.3,222.22,9.22278328]
[1734181704056,9.22202282,222.29,222.22,8.54797975]
[1734181704659,8.54797975,222.27,222.21,20.0]
[1734181704855,8.54797975,222.25,222.22,20.0]
[1734181705161,8.54797975,222.25,222.18,14.94047975]
[1734181706564,8.54797975,222.25,222.18,6.3925]
[1734181706767,8.54797975,222.25,222.18,14.94047975]
[1734181707869,8.54797975,222.25,222.18,8.54797975]
[1734181708174,38.690119,222.31,222.16,21.5353]
[1734181708175,9.22202282,222.24,222.16,21.5353]
[1734181708390,8.54797975,222.22,222.17,20.0]
[1734181708570,8.54797975,222.21,222.17,20.0]
[1734181708977,8.54797975,222.23,222.16,30.08327975]
[1734181710782,8.54797975,222.25,222.18,8.54797975]
[1734181711674,8.54797975,222.26,222.19,8.54797975]
[1734181712207,8.54797975,222.28,222.21,8.54797975]
[1734181712366,8.54797975,222.3,222.23,8.54797975]
[1734181712689,9.22202282,222.31,222.24,8.54797975]
[1734181712870,8.54797975,222.3,222.23,8.54797975]
[1734181713272,9.22202282,222.29,222.22,8.54797975]
[1734181713493,8.54797975,222.28,222.21,8.54797975]
[1734181714295,0.67404307,222.27,222.21,8.54797975]
[1734181714494,8.54797975,222.28,222.21,8.54797975]
[1734181715495,9.22202282,222.27,222.2,8.54797975]
[1734181715682,8.54797975,222.27,222.2,8.54797975]
[1734181716776,0.12549,222.31,222.2,8.54797975]
[1734181717082,8.54797975,222.28,222.21,8.54797975]
[1734181718804,0.67404307,222.31,222.22,8.54797975]
[1734181719005,9.22202282,222.32,222.25,8.54797975]
[1734181719199,8.54797975,222.32,222.25,8.54797975]
[1734181719795,8.54797975,222.3,222.23,8.54797975]
[1734181720004,8.54797975,222.31,222.24,8.54797975]
[1734181724007,0.12549,222.34,222.24,8.54797975]
[1734181724306,8.54797975,222.31,222.24,8.54797975]
[1734181724684,0.67404307,222.34,222.27,8.54797975]
[1734181724890,8.54797975,222.34,222.27,8.54797975]
[1734181725493,6.0958,222.36,222.28,8.54797975]
[1734181725806,8.54797975,222.35,222.28,8.54797975]
[1734181727620,8.54797975,222.34,222.27,8.54797975]
[1734181727908,8.54797975,222.34,222.26,8.54797975]
[1734181728710,0.67404307,222.39,222.3,8.54797975]
[1734181728893,8.54797975,222.38,222.31,8.54797975]
[1734181729409,9.22202282,222.39,222.32,8.54797975]
[1734181729809,0.67404307,222.43,222.33,8.54797975]
[1734181729994,8.54797975,222.41,222.34,8.54797975]
[1734181730590,8.54797975,222.4,222.33,8.54797975]
[1734181736391,8.54797975,222.41,222.34,8.54797975]
[1734181737328,0.67404307,222.43,222.34,8.54797975]
[1734181737496,8.54797975,222.4,222.36,20.0]
[1734181737698,8.54797975,222.37,222.28,0.67451035]
[1734181737894,8.54797975,222.34,222.27,8.54797975]
[1734181738613,8.54797975,222.34,222.25,0.6746065]
[1734181738614,8.54797975,222.33,222.26,8.54797975]
[1734181739314,8.54797975,222.34,222.27,8.54797975]
[1734181740127,8.54797975,222.33,222.3,20.0]
[1734181740495,8.54797975,222.34,222.3,20.0]
[1734181740931,8.54797975,222.34,222.24,1.6062]
[1734181741209,8.54797975,222.33,222.26,8.54797975]
[1734181741424,8.54797975,222.34,222.27,8.54797975]
[1734181741814,8.54797975,222.33,222.26,8.54797975]
[1734181742022,8.54797975,222.31,222.25,20.0]
[1734181742325,8.54797975,222.31,222.27,20.0]
[1734181744025,8.54797975,222.31,222.26,20.0]
[1734181744317,8.54797975,222.31,222.24,1.6062]
[1734181744318,8.54797975,222.29,222.21,20.0]
[1734181744500,9.22202282,222.28,222.21,28.54797975]
[1734181744700,9.22202282,222.28,222.2,8.54797975]
[1734181744701,8.54797975,222.27,222.2,8.54797975]
[1734181744918,8.54797975,222.28,222.21,8.54797975]
[1734181745140,8.54797975,222.3,222.23,8.54797975]
[1734181745912,9.22202282,222.29,222.22,8.54797975]
[1734181746401,8.54797975,222.29,222.22,8.54797975]
[1734181746604,8.54797975,222.3,222.23,8.54797975]
[1734181747419,8.54797975,222.29,222.22,8.54797975]
[1734181747612,8.54797975,222.3,222.23,8.54797975]
[1734181748723,9.22202282,222.31,222.24,8.54797975]
[1734181749211,0.67404307,222.36,222.27,8.54797975]
[1734181749422,0.67404307,222.36,222.3,8.54797975]
[1734181749725,0.67404307,222.37,222.31,8.54797975]
[1734181750324,8.54797975,222.36,222.29,8.54797975]
[1734181750517,0.67404307,222.35,222.28,8.54797975]
[1734181751119,9.22202282,222.35,222.28,8.54797975]
[1734181751720,8.54797975,222.35,222.28,8.54797975]
[1734181753729,0.67404307,222.37,222.28,8.54797975]
[1734181754037,8.54797975,222.35,222.28,8.54797975]
[1734181754748,8.54797975,222.36,222.29,8.54797975]
[1734181759125,0.67404307,222.37,222.26,0.67464356]
[1734181759326,8.54797975,222.36,222.29,8.54797975]
[1734181761631,8.54797975,222.35,222.28,8.54797975]
[1734181761830,9.22202282,222.34,222.3,20.0]
[1734181762562,9.22202282,222.34,222.21,0.67465745]
[1734181762563,8.54797975,222.31,222.21,20.0]
[1734181762845,8.54797975,222.28,222.21,8.54797975]
[1734181763036,8.54797975,222.28,222.18,12.8513]
[1734181763436,8.54797975,222.25,222.18,1.5997]
[1734181763642,8.54797975,222.25,222.18,10.14767975]
[1734181764650,8.54797975,222.25,222.21,20.0]
[1734181765533,8.54797975,222.22,222.16,20.0]
[1734181765740,8.54797975,222.21,222.13,1.6503]
[1734181765944,8.54797975,222.21,222.14,8.54797975]
[1734181768650,8.54797975,222.21,222.1,0.67509194]
[1734181768651,9.22202282,222.2,222.16,20.0]
[1734181769039,8.54797975,222.18,222.11,8.54797975]
[1734181769243,0.67404307,222.17,222.14,20.0]
[1734181769432,1.3875,222.2,222.08,2.32552608]
[1734181769630,8.54797975,222.18,222.11,8.54797975]
[1734181770448,8.54797975,222.18,222.12,8.54797975]
[1734181770659,8.54797975,222.19,222.13,8.54797975]
[1734181771029,8.54797975,222.19,222.12,8.54797975]
[1734181771735,8.54797975,222.18,222.11,8.54797975]
[1734181772941,8.54797975,222.15,222.08,20.0]
[1734181773144,8.54797975,222.15,222.08,28.54797975]
[1734181774554,9.22202282,222.14,222.07,8.54797975]
[1734181774750,8.54797975,222.13,222.06,8.54797975]
[1734181775643,8.54797975,222.14,222.07,8.54797975]
[1734181776466,0.67404307,222.19,222.08,8.54797975]
[1734181776467,8.54797975,222.15,222.08,8.54797975]
[1734181776639,0.67404307,222.18,222.11,8.54797975]
[1734181776838,8.54797975,222.18,222.11,8.54797975]
[1734181778135,0.67404307,222.2,222.14,20.0]
[1734181778343,8.54797975,222.22,222.15,8.54797975]
[1734181778855,8.54797975,222.23,222.16,8.54797975]
[1734181779277,8.54797975,222.22,222.15,8.54797975]
[1734181781953,8.54797975,222.21,222.17,20.0]
[1734181783248,8.54797975,222.22,222.15,8.54797975]
[1734181785079,8.54797975,222.24,222.19,20.0]
[1734181785264,6.6325,222.26,222.19,8.54797975]
[1734181785449,7.30654307,222.26,222.19,8.54797975]
[1734181785649,15.85452282,222.26,222.19,8.54797975]